Cogmind - Beta 11.1 @@@ ROGUE MODE // 2022.07.24 @ 18:47:40 Player: gorb Result: Destroyed by G-34 Mercenary with Small Laser Performance ------------- Evolutions (1) 500 Regions Visited (3) 600 Robots Destroyed (32) 160 Value Destroyed (926) 926 Prototype IDs (0) 0 Alien Tech Used (0) 0 Bonus (0) 0 TOTAL SCORE: 2186 Bonus ------- None Cogmind --------- Core Integrity 0/400 Matter 269/300 Energy 406/415 System Corruption 2% Temperature Cool (42) Movement Treading (240) Ox1 Location -9/Storage Parts ------- > --- POWER (2) -------- Ion Engine Improved Ion Engine > --- PROPULSION (2) --- Light Treads > --- UTILITY (2) ------ Large Storage Unit Visual Processing Unit > --- WEAPON (3) ------- Small Laser Heavy Assault Rifle > --- INVENTORY (15) --- Ion Engine Light Ion Engine Light Ion Engine Light Nuclear Core Improved Heat Sink Signal Interpreter Light Armor Plating Peak State ------------ > --- POWER ------------ Ion Engine Light Nuclear Core > --- PROPULSION ------- Aluminum Leg Aluminum Leg > --- UTILITY ---------- Large Storage Unit Improved Light Armor Plating > --- WEAPON ----------- Particle Gun EMP Blaster Shock Bomb Launcher > --- INVENTORY -------- Ion Engine Ion Engine Light Ion Engine Light Treads Light Treads Aluminum Leg Aluminum Leg Improved Heat Sink EM Pulse Gun Light Assault Rifle Shock Bomb Launcher [Rating: 18] Favorites ----------- Power Ion Engine Engine Ion Engine Power Core Light Nuclear Core Propulsion Aluminum Leg Treads Light Treads Leg Aluminum Leg Utility Large Storage Unit Device Improved Heat Sink Storage Large Storage Unit Processor Transport Network Coupler Protection Improved Light Armor Plating Weapon Light Assault Rifle Energy Gun Particle Gun Ballistic Gun Light Assault Rifle Launcher Shock Bomb Launcher Build | -11 -10 -9 -9 ------- Run | Scr Mat Mat Sto Slots Evolved 2 | . . 2 . Power 1 | . . 1 . Propulsion . | . . . . Utility . | . . . . Weapon 1 | . . 1 . Parts Attached 37 | 6 6 16 9 Power 11 | 1 2 4 4 Engine 8 | 1 1 3 3 Core 3 | . 1 1 1 Reactor . | . . . . Propulsion 7 | 2 1 2 2 Treads 2 | . . . 2 Leg 5 | 2 1 2 . Wheel . | . . . . Hover . | . . . . Flight . | . . . . Utility 6 | 1 2 2 1 Device 1 | . 1 . . Storage 2 | 1 1 . . Processor 2 | . . 1 1 Hackware . | . . . . Protection 1 | . . 1 . Artifact . | . . . . Weapon 13 | 2 1 8 2 Energy Gun 5 | 1 1 2 1 Energy Cannon . | . . . . Ballistic Gun 5 | 1 . 3 1 Ballistic Cannon . | . . . . Launcher 3 | . . 3 . Special Weapon . | . . . . Impact Weapon . | . . . . Slashing Weapon . | . . . . Piercing Weapon . | . . . . Special Melee Weapon . | . . . . Unidentified Prototypes . | . . . . Parts Lost 16 | . . 8 8 Power 3 | . . 1 2 Propulsion 5 | . . 2 3 Utility 1 | . . 1 . Weapon 7 | . . 4 3 Highest Loss Streak 5 | . . 5 4 To Critical Strikes . | . . . . Average Slot Usage (%) 87 | . 92 96 73 Engine 14 | . 7 16 19 Core 4 | . 6 5 1 Treads 4 | . . . 12 Leg 16 | . 28 21 2 Device 2 | . 7 1 . Storage 11 | . 14 11 11 Processor 4 | . . 2 11 Protection 2 | . . 5 . Energy Gun 8 | . 14 8 3 Ballistic Gun 12 | . 14 13 9 Launcher 4 | . . 9 2 Naked Turns . | . . . . Heaviest Build 46 | 11 30 46 40 Greatest Support 40 | 20 20 20 40 Greatest Overweight (x) 9 | . 1 4 9 Average Overweight (x) 1 | . . 1 1 Largest Inventory Capacity 15 | 8 15 15 15 Average Capacity 14 | 7 14 15 15 Most Carried 11 | 5 9 11 7 Average Carried 6 | 2 5 7 5 Final Capacity 15 | 8 15 15 15 Final Carried 9 | 3 9 6 7 Class Distribution -------------------- 82% | Mutant 11% | Scavenger-Mutant 5% | Gunner Dominant Class ---------------- Mutant | -10/Materials Mutant | -9/Materials Mutant | -9/Storage Resources | -11 -10 -9 -9 ----------- Run | Scr Mat Mat Sto Matter Collected 696 | 236 108 194 158 Remotely . | . . . . Salvage Created 1261 | . 237 557 467 Parts 87 | . 16 42 29 Haulers Intercepted 1 | . . 1 . Recyclers Shooed . | . . . . Parts Field Recycled . | . . . . Retrieved Matter . | . . . . Parts Self-Destructed . | . . . . Prevented . | . . . . Kills | -11 -10 -9 -9 ------- Run | Scr Mat Mat Sto Combat Hostiles Destroyed 26 | . 6 12 8 Melee 1 | . . . 1 Guns 8 | . 5 . 3 AOE 15 | . 1 12 2 Classes Destroyed 7 | . 1 5 1 Worker 3 | . . 1 2 Builder 1 | . . 1 . Hauler 1 | . . 1 . Watcher 1 | . . . 1 Swarmer 4 | . . 4 . Grunt 16 | . 6 5 5 Sentry 6 | . . 3 3 Best Kill Streak 8 | . 2 8 4 Combat Bots Only 6 | . 2 6 3 Max Kills in Single Turn 4 | . 1 4 2 Gunslinging . | . . . . Exploded 3 | . 1 3 1 Melee 1 | . . . 1 Uniques/NPCs Destroyed . | . . . . Combat | -11 -10 -9 -9 -------- Run | Scr Mat Mat Sto Damage Taken 2242 | . 381 872 989 Core 477 | . 76 132 269 Absorbed by Shields . | . . . . Regen/Repaired (Parts) 55 | . . 55 . Core Remaining (%) 84 | 100 69 . . Volleys Fired 90 | . 35 18 37 Largest 2 | . 2 2 2 Hottest 85 | . 85 69 63 Shots Fired 149 | . 69 23 57 Gun 127 | . 69 12 46 Cannon . | . . . . Launcher 22 | . . 11 11 Special . | . . . . Kinetic 79 | . 35 10 34 Thermal 37 | . 25 . 12 Explosive . | . . . . Electromagnetic 33 | . 9 13 11 Robot Hit Streak 9 | . 9 5 8 Robot Miss Streak 7 | . 4 7 5 Penetration Max . | . . . . Secondary Targets 1 | . 1 . . Max Gunslinging Chain 1 | . 1 . . Shots Hit Robots 84 | . 42 8 34 Core Hits 59 | . 14 20 25 Critical Kills . | . . . . Critical Parts Destroyed . | . . . . Critical Strikes 2 | . 2 . . Burn 1 | . 1 . . Corrupt 1 | . 1 . . Melee Attacks . | . . . . Impact . | . . . . Slashing . | . . . . Piercing . | . . . . Sneak Attacks . | . . . . Combat Hostiles . | . . . . Follow-up Attacks . | . . . . Damage Inflicted 1904 | . 512 544 848 Guns 904 | . 488 62 354 Cannons . | . . . . Explosions 965 | . 24 482 459 Melee . | . . . . Ramming 35 | . . . 35 Kinetic 546 | . 186 62 298 Thermal 384 | . 241 54 89 Explosive . | . . . . Electromagnetic 939 | . 85 428 426 Impact . | . . . . Slashing . | . . . . Piercing . | . . . . Highest Corruption 2 | . . . 2 Average Corruption 2 | . . . 2 Corruption Purged . | . . . . Corruption Blocked . | . . . . Effects 3 | . . . 3 Matter Fused 2 | . . . 2 Energy Discharges 1 | . . . 1 Overload Shots . | . . . . Overflow Damage 45 | . . 30 15 Projectiles . | . . . . Explosions 45 | . . 30 15 Melee . | . . . . Knockbacks . | . . . . Impact . | . . . . Kinetic . | . . . . Secondary . | . . . . Self-Inflicted Damage 282 | . 16 163 103 Shots 16 | . 1 9 6 Rammed 30 | . . . 30 Targets Rammed 30 | . . . 30 Kicked . | . . . . Crushed . | . . . . Highest Temperature 118 | . 118 62 60 Average Temperature 25 | . 33 22 17 Received Heat Transfer 738 | . 219 198 321 Siege Activations . | . . . . Robots Corrupted 2 | . . . 2 Combat Hostiles 2 | . . . 2 Parts Fried 3 | . . . 3 Impact Corruptions . | . . . . Robots Melted . | . . . . Combat Hostiles . | . . . . Parts Melted . | . . . . Heat Transferred 817 | . 592 50 175 Parts Sabotaged . | . . . . Parts Stolen . | . . . . Parts Stripped . | . . . . Power Chain Reactions 7 | . 1 4 2 Missiles Intercepted . | . . . . Alert | -11 -10 -9 -9 ------- Run | Scr Mat Mat Sto Peak Influence 225 | . 129 196 225 Initial 82 | . . 20 82 Average 91 | . 35 98 138 Maximum Alert Level 1 | . . . 1 Low Security (%) 91 | 100 100 100 75 Level 1 8 | . . . 24 Level 2 . | . . . . Level 3 . | . . . . Level 4 . | . . . . Level 5 . | . . . . High Security . | . . . . Max Security . | . . . . Squads Dispatched 3 | . 1 . 2 Investigation . | . . . . Extermination . | . . . . Reinforcement 3 | . 1 . 2 Assault . | . . . . Garrison . | . . . . Intercept . | . . . . Searches Triggered . | . . . . Construction Impeded . | . . . . Haulers Reinforced . | . . . . Active Scanning Responses . | . . . . Cargo Convoy Interrupts . | . . . . Stealth | -11 -10 -9 -9 --------- Run | Scr Mat Mat Sto Distress Signals 3 | . 1 1 1 Communications Jammed . | . . . . Distress Signals . | . . . . Times Spotted 45 | . 11 16 18 Peak Tracking Total 7 | . 4 7 3 Tactical Retreats 2 | . . 1 1 Traps | -11 -10 -9 -9 ------- Run | Scr Mat Mat Sto Traps Triggered 2 | . . 1 1 Indirectly . | . . . . Trap Hack Attempts . | . . . . Triggered . | . . . . Disarmed . | . . . . Reprogrammed . | . . . . Reused . | . . . . Traps Extracted . | . . . . Installed . | . . . . Triggered . | . . . . Machines | -11 -10 -9 -9 ---------- Run | Scr Mat Mat Sto Machines Disabled 2 | . 1 1 . Max in Single Turn 1 | . 1 1 . Machines Sabotaged . | . . . . Garrisons Compromised . | . . . . Overloaded Fab Kills . | . . . . Hacking | -11 -10 -9 -9 --------- Run | Scr Mat Mat Sto Machines Accessed 2 | . 1 1 . Terminals 1 | . 1 . . Fabricators . | . . . . Repair Stations 1 | . . 1 . Recycling Units . | . . . . Scanalyzers . | . . . . Garrison Access . | . . . . Total Hacks 4 | . 2 2 . Successful 4 | . 2 2 . Failed . | . . . . Catastrophic . | . . . . Database Lockouts . | . . . . Manual . | . . . . Terminals 2 | . 2 . . Fabricators . | . . . . Repair Stations 2 | . . 2 . Recycling Units . | . . . . Scanalyzers . | . . . . Garrison Access . | . . . . Terminal Hacks 2 | . 2 . . Record 1 | . 1 . . Alert Level 1 | . 1 . . Fabricator Hacks . | . . . . Repair Station Hacks 2 | . . 2 . Scan Component 1 | . . 1 . Repair 1 | . . 1 . Recycling Unit Hacks . | . . . . Scanalyzer . | . . . . Garrison Access Hacks . | . . . . Unauthorized Hacks . | . . . . Terminals . | . . . . Fabricators . | . . . . Repair Stations . | . . . . Recycling Units . | . . . . Scanalyzers . | . . . . Garrison Access . | . . . . Data Cores Recovered . | . . . . Used . | . . . . Hacking Detections 1 | . . 1 . Full Trace Events . | . . . . Feedback Events . | . . . . Feedback Blocked . | . . . . Robot Schematics Acquired . | . . . . Robots Built . | . . . . Authchips . | . . . . Time . | . . . . Total Robot Build Rating . | . . . . Part Schematics Acquired . | . . . . Parts Built . | . . . . Authchips . | . . . . Time . | . . . . Total Part Build Rating . | . . . . Parts Repaired 1 | . . 1 . Time 26 | . . 26 . Parts Recycled . | . . . . Recycled Matter . | . . . . Retrieved Matter . | . . . . Retrieved Components . | . . . . Parts Scanalyzed . | . . . . Part Schematics Acquired . | . . . . Parts Damaged . | . . . . Bothacking | -11 -10 -9 -9 ------------ Run | Scr Mat Mat Sto Used RIF Installer . | . . . . Robots Hacked . | . . . . Non-combat . | . . . . Combat . | . . . . Robot Hacks Applied . | . . . . Relay Couplers Released . | . . . . Fabnet Peak Effective % . | . . . . Robots Rewired . | . . . . Allies Hacked . | . . . . Hacks Repelled . | . . . . Allies | -11 -10 -9 -9 -------- Run | Scr Mat Mat Sto Total Allies . | . . . . Largest Group . | . . . . Highest-Rated Group . | . . . . Highest-Rated Ally . | . . . . Total Orders . | . . . . Ally Attacks . | . . . . Total Damage . | . . . . Kills . | . . . . Allies Corrupted . | . . . . Allies Melted . | . . . . Intel | -11 -10 -9 -9 ------- Run | Scr Mat Mat Sto Robot Analysis Total . | . . . . Derelict Logs Recovered . | . . . . Drone Launches . | . . . . Drone Recoveries . | . . . . Exploration | -11 -10 -9 -9 ------------- Run | Scr Mat Mat Sto Turns Passed 2199 | 86 587 788 738 Spaces Moved 906 | 67 252 325 262 Core 44 | 14 . . 30 Treads 195 | . . . 195 Legs 667 | 53 252 325 37 Wheels . | . . . . Hover . | . . . . Flight . | . . . . Fastest Speed 50 | 50 120 190 160 Average Speed 203 | 105 188 222 220 Slowest Speed 500 | 120 190 400 500 Overloaded Moves . | . . . . Propulsion Burnouts . | . . . . Robots Hopped . | . . . . Cave-ins Triggered . | . . . . Exploration Rate (%) 23 | 4 35 23 32 Regions Visited 3 Branch Regions 1 Pre-discovered Areas . | . . . . Known Exits Taken . | . . . . Unknown Exits Taken 3 | 1 1 1 . Scrap Searched . | . . . . Spaces Dug . | . . . . Terrain Destroyed 16 | . 3 8 5 Melee . | . . . . Projectile . | . . . . AOE 16 | . 3 8 5 Terrain Rammed . | . . . . Walls Destroyed . | . . . . Machines Disabled . | . . . . Actions | -11 -10 -9 -9 --------- Run | Scr Mat Mat Sto Total 1099 | 82 301 368 348 Wait 1 | 1 . . . Move 903 | 66 251 324 262 Hop . | . . . . Pick Up 34 | 9 8 9 8 Fast Attach . | . . . . Attach 27 | 6 2 11 8 Detach 2 | . . . 2 Swap 10 | . 4 5 1 Drop 2 | . 1 1 . Fire 90 | . 35 18 37 Melee . | . . . . Ram 2 | . . . 2 Kick . | . . . . Crush 28 | . . . 28 Escape Stasis . | . . . . Rewire . | . . . . Trap . | . . . . Miscellaneous . | . . . . Route ------- -11/Scrapyard -10/Materials (discovered 2 exits: *Mat / [*Min]) -9/Materials -9/Storage History --------- Turn | Location | Event 3 | -11/Scrapyard | Discovered new exit (range 15) 87 | -11/Scrapyard | Entered Materials 157 | -10/Materials | Discovered new exit (range 15) 306 | -10/Materials | Build established: Mutant 637 | -10/Materials | Discovered new exit (range 14) 674 | -10/Materials | Entered another Materials area 674 | -9/Materials | Evolved 2 slots: Power x1, Weapon x1 676 | -9/Materials | Discovered new exit (range 7) 1110 | -9/Materials | Lost 3 parts (1n2w) 1245 | -9/Materials | Lost 5 parts (1p1n1u2w) 1313 | -9/Materials | Repaired Ion Engine 1462 | -9/Materials | Entered Storage 1618 | -9/Storage | Core integrity fell below 50% 1650 | -9/Storage | Lost 4 parts (1n3w) 1769 | -9/Storage | Core integrity fell below 20% 2200 | -9/Storage | Destroyed by G-34 Mercenary with Small Laser Last Messages --------------- Acquired Ion Engine. Acquired 15 matter. K-01 Serf collects debris. Connecting with Repair Station... Current location identified: Storage O-16 Technician: "IFF HANDSHAKE FAILED. SECURING TERMINAL." ALERT: Hostiles spotted, dispatching reinforcements to Terminal S002. Triggered Shock Trap. The floor emits a surge of raw power. System corrupted (+2). System corrupted: Energy discharge (-128). Destroyed Hover Unit. W-16 Scout destroyed. K-01 Serf collects debris. U-05 Engineer lays Concrete. K-01 Serf collects debris. Acquired Signal Interpreter. Lgt. Treads destroyed. System corrupted: Matter fused (-7). System corrupted: Matter fused (-5). Map ----- +----------------------------------------------------+ | | | | | | | | | | | | | | | | | | | | | | | | | | | | | | | | | | | | | | | ????????####?????????????????????? | | ????????#"""#????????????????????? | | ????#####"T"###??????????????????? | | ????# #??????????????????? | | ????#"" ####???????????????? | | ????#"" "" #???????????????? | | ????#"T @ !!"""#???????????????? | | ????#"" !! R"#???????????????? | | ????#"" """#???????????????? | | ????# ####???????????????? | | ????# gg #??????????????????? | | ????#####/###########????????????? | | ???????# + #????????????? | | ????#### # #????????????? | | ????# # """""" #????????????? | | ????# # "??????#????????????? | | ????# a+ "????? #????????????? | | ????# # """""" #????????????? | | ????# # #????????????? | | ????# # #????????????? | | ????# ^%# #????????????? | | ????# ^ ^ ##########????????????? | | ????# #?????????????????????? | | ????# #??????####+??????????? | | ????# #??? ??????????? | | ????# ^^# ! #?????????? | | ????# ^^ ^+ ??????????? | | ????# %# ??????????? | | ????# # ???????????? | | ????# #? % [???????????? | | ????# #?? ????????????? | +----------------------------------------------------+ Best States ------------- Heat Dissipation 42 Energy Generation 19 Energy Capacity 415 Matter Stores 300 Matter Capacity 300 Sight Range 18 Terrain Scan Density 10 Armor Coverage 150 Evasion (%) 55 Recoil Reduction 2 Item Schematics ----------------- None Robot Schematics ------------------ None Fabricated ------------ Nothing Alien Tech Used ----------------- None Achievements -------------- Fist Fight Loot Pinata Part-time Mechanic Power Corrupts Challenges ------------ None Game ------ Seed MiningEfficiencyNukerbomber Manual? 0 Play Time 00:24:00 Cumulative 2.7 hours Start 2022.07.24 @ 18:23:43 End 2022.07.24 @ 18:47:40 Sessions 1 Manual Loads 0 Difficulty Rogue Special Mode None Game No. 5 Rogue 5 Adventurer 0 Explorer 0 Win Type - Total 0 Types 0/0/0/0/0/0/0/0/0 Lore% 1 Gallery% 5 Achievement% 6 Wizard Run 0 Options --------- ASCII 0 Keyboard 0 Movement Mouse Keybinds 0 Fullscreen 1 Font 18/Smallcaps Map View 76x50 Tactical HUD 0 Map Filters NONE Filters NONE Steam 1 RUN: 309c0e89-7084-4177-9d3f-d0da02d9a24b